fUSD/lending_fUSD_20250112
["ID","MTS","AMOUNT","RATE_DAILY","PERIOD"]
[348632415,1736691047754,-889.96,0.00010243,2]
[348632416,1736691047765,-500.0,0.00010243,2]
[348632417,1736691047774,-500.0,0.00010243,2]
[348632418,1736691047783,-509.16,0.00010243,2]
[348632419,1736691047793,-500.0,0.00010243,2]
[348632420,1736691047802,-500.0,0.00010243,2]
[348632421,1736691047812,-586.10276449,0.00010243,2]
[348632422,1736691047821,-500.0,0.00010243,2]
[348632423,1736691047831,-500.0,0.00010243,2]
[348632424,1736691047840,-513.65,0.00010243,2]
[348632425,1736691047849,-500.0,0.00010243,2]
[348632426,1736691047859,-666.16,0.00010243,2]
[348632427,1736691047868,-500.0,0.00010243,2]
[348632428,1736691047877,-532.86,0.00010243,2]
[348632429,1736691047886,-513.58649727,0.00010243,2]
[348632430,1736691047897,-500.0,0.00010243,2]
[348632431,1736691047907,-500.0,0.00010243,2]
[348632432,1736691047916,-576.35,0.00010243,2]
[348632433,1736691047927,-500.0,0.00010243,2]
[348632434,1736691047937,-500.0,0.00010243,2]
[348632435,1736691047946,-500.0,0.00010243,2]
[348632436,1736691047955,-500.0,0.00010243,2]
[348632437,1736691047964,-500.0,0.00010243,2]
[348632438,1736691047974,-510.88426979,0.00010243,2]
[348632439,1736691047984,-490.75854825,0.00010243,2]
[348632440,1736691047993,-931.13,0.00010243,2]
[348632441,1736691048003,-500.0,0.00010243,2]
[348632442,1736691048012,-500.0,0.00010243,2]
[348632443,1736691048021,-500.0,0.00010243,2]
[348632444,1736691048030,-500.0,0.00010243,2]
[348632445,1736691048039,-599.18615038,0.00010243,2]
[348632446,1736691048048,-500.0,0.00010243,2]
[348632447,1736691048058,-500.0,0.00010243,2]
[348632448,1736691048067,-564.18,0.00010243,2]
[348632449,1736691048076,-500.0,0.00010243,2]
[348632450,1736691048085,-500.0,0.00010243,2]
[348632451,1736691048094,-599.43,0.00010243,2]
[348632452,1736691048104,-521.28,0.00010243,2]
[348632453,1736691048114,-500.0,0.00010243,2]
[348632454,1736691048123,-500.0,0.00010243,2]
[348632455,1736691048134,-350.10968975,0.00010243,2]
[348632456,1736691048143,-500.0,0.00010243,2]
[348632457,1736691048154,-500.0,0.00010243,2]
[348632458,1736691048163,-500.0,0.00010243,2]
[348632459,1736691048173,-500.0,0.00010243,2]
[348632460,1736691048183,-500.0,0.00010243,2]
[348632461,1736691048192,-500.0,0.00010243,2]
[348632462,1736691048201,-500.0,0.00010243,2]
[348632463,1736691048211,-500.0,0.00010243,2]
[348632464,1736691048222,-612.25,0.00010243,2]
[348632465,1736691048231,-500.0,0.00010243,2]
[348632466,1736691048241,-500.0,0.00010243,2]
[348632467,1736691048250,-771.97,0.00010243,2]
[348632468,1736691048260,-746.08,0.00010243,2]
[348632469,1736691048269,-823.3,0.00010243,2]
[348632470,1736691048279,-500.0,0.00010243,2]
[348632471,1736691048288,-500.0,0.00010243,2]
[348632472,1736691048298,-832.54,0.00010243,2]
[348632473,1736691048308,-500.0,0.00010243,2]
[348632474,1736691048317,-506.47946439,0.00010243,2]
[348632475,1736691048326,-536.52,0.00010243,2]
[348632476,1736691048335,-500.0,0.00010243,2]
[348632477,1736691048345,-500.0,0.00010243,2]
[348632478,1736691048354,-500.0,0.00010243,2]
[348632479,1736691048364,-500.0,0.00010243,2]
[348632480,1736691048373,-906.07,0.00010243,2]
[348632481,1736691048383,-500.0,0.00010243,2]
[348632482,1736691048392,-846.45,0.00010243,2]
[348632483,1736691048401,-500.0,0.00010243,2]
[348632484,1736691048410,-500.0,0.00010243,2]
[348632485,1736691048420,-730.46,0.00010243,2]
[348632486,1736691048429,-500.0,0.00010243,2]
[348632487,1736691048438,-512.88,0.00010243,2]
[348632488,1736691048447,-500.0,0.00010243,2]
[348632489,1736691048457,-780.29,0.00010243,2]
[348632490,1736691048466,-946.1,0.00010243,2]
[348632491,1736691048476,-739.33,0.00010243,2]
[348632492,1736691048485,-513.5,0.00010243,2]
[348632493,1736691048494,-500.0,0.00010243,2]
[348632494,1736691048503,-2891.62,0.00010243,2]
[348632495,1736691048512,-539.77,0.00010243,2]
[348632496,1736691048521,-945.58,0.00010243,2]
[348632497,1736691048531,-507.40402042,0.00010243,2]
[348632498,1736691048540,-556.11,0.00010243,2]
[348632499,1736691048549,-1234.54,0.00010243,2]
[348632500,1736691048563,-500.0,0.00010243,2]
[348632501,1736691048572,-500.0,0.00010243,2]
[348632502,1736691048582,-954.47,0.00010243,2]
[348632503,1736691048591,-500.0,0.00010243,2]
[348632504,1736691048600,-2764.81,0.00010243,2]
[348632505,1736691048610,-583.26,0.00010243,2]
[348632506,1736691048618,-500.0,0.00010243,2]
[348632507,1736691048628,-881.07,0.00010243,2]
[348632508,1736691048637,-639.94,0.00010243,2]
[348632509,1736691048646,-500.0,0.00010243,2]
[348632510,1736691048656,-541.38,0.00010243,2]
[348632511,1736691048665,-1156.13,0.00010243,2]
[348632512,1736691048675,-9249.95,0.00010243,2]
[348632513,1736691048684,-799.31,0.00010243,2]
[348632514,1736691048693,-500.0,0.00010243,2]
[348632515,1736691048703,-500.0,0.00010243,2]
[348632516,1736691048712,-939.49,0.00010243,2]
[348632517,1736691048724,-573.6,0.00010243,2]
[348632518,1736691048733,-500.0,0.00010243,2]
[348632519,1736691048743,-502.589287,0.00010243,2]
[348632520,1736691048752,-970.72,0.00010243,2]
[348632521,1736691048761,-500.0,0.00010243,2]
[348632522,1736691048770,-500.0,0.00010243,2]
[348632523,1736691048780,-502.42,0.00010243,2]
[348632524,1736691048789,-500.0,0.00010243,2]
[348632525,1736691048799,-4976.97,0.00010243,2]
[348632526,1736691048808,-616.63,0.00010243,2]
[348632527,1736691048817,-500.0,0.00010243,2]
[348632528,1736691048826,-500.0,0.00010243,2]
[348632529,1736691048836,-589.2851405,0.00010243,2]
[348632530,1736691048845,-1304.87,0.00010243,2]
[348632531,1736691048854,-500.0,0.00010243,2]
[348632532,1736691048863,-500.0,0.00010243,2]
[348632533,1736691048873,-505.81854637,0.00010243,2]
[348632534,1736691048882,-1044.07,0.00010243,2]
[348632535,1736691048892,-1010.03,0.00010243,2]
[348632536,1736691048902,-500.0,0.00010243,2]
[348632537,1736691048912,-525.89,0.00010243,2]
[348632538,1736691048922,-509.80234045,0.00010243,2]
[348632539,1736691048932,-2557.54,0.00010243,2]
[348632540,1736691048941,-999.61,0.00010243,2]
[348632541,1736691048950,-500.0,0.00010243,2]
[348632542,1736691048959,-600.68,0.00010243,2]
[348632543,1736691048970,-500.0,0.00010243,2]
[348632544,1736691048980,-500.0,0.00010243,2]
[348632545,1736691048989,-500.0,0.00010243,2]
[348632546,1736691048999,-500.0,0.00010243,2]
[348632547,1736691049008,-500.0,0.00010243,2]
[348632548,1736691049018,-3438.24,0.00010243,2]
[348632549,1736691049027,-655.87,0.00010243,2]
[348632550,1736691049037,-2404.43,0.00010243,2]
[348632551,1736691049046,-500.0,0.00010243,2]
[348632552,1736691049056,-500.0,0.00010243,2]
[348632553,1736691049065,-500.0,0.00010243,2]
[348632554,1736691049075,-1014.52,0.00010243,2]
[348632555,1736691049085,-500.0,0.00010243,2]
[348632556,1736691049094,-1543.51,0.00010243,2]
[348632557,1736691049104,-500.0,0.00010243,2]
[348632558,1736691049113,-714.21,0.00010243,2]
[348632559,1736691049123,-548.91136803,0.00010243,2]
[348632560,1736691049132,-500.0,0.00010243,2]
[348632561,1736691049142,-793.41,0.00010243,2]
[348632562,1736691049151,-643.1,0.00010243,2]
[348632563,1736691049160,-1105.81,0.00010243,2]
[348632564,1736691049169,-584.24,0.00010243,2]
[348632565,1736691049179,-500.0,0.00010243,2]
[348632566,1736691049188,-528.87,0.00010243,2]
[348632567,1736691049197,-500.0,0.00010243,2]
[348632568,1736691049207,-3597.96,0.00010243,2]
[348632569,1736691049218,-507.23,0.00010243,2]
[348632570,1736691049227,-564.53,0.00010243,2]
[348632571,1736691049236,-500.0,0.00010243,2]
[348632572,1736691049246,-2317.69,0.00010243,2]
[348632573,1736691049256,-500.0,0.00010243,2]
[348632574,1736691049266,-500.0,0.00010243,2]
[348632575,1736691049275,-500.0,0.00010243,2]
[348632576,1736691049285,-500.0,0.00010243,2]
[348632577,1736691049295,-500.0,0.00010243,2]
[348632578,1736691049304,-505.15,0.00010243,2]
[348632579,1736691049314,-500.0,0.00010243,2]
[348632580,1736691049324,-500.0,0.00010243,2]
[348632581,1736691049333,-498.95213334,0.00010243,2]
[348632582,1736691049343,-500.0,0.00010243,2]
[348632583,1736691049352,-749.03,0.00010243,2]
[348632584,1736691049361,-1833.34,0.00010243,2]
[348632585,1736691049371,-500.0,0.00010243,2]
[348632586,1736691049380,-539.28,0.00010243,2]
[348632587,1736691049390,-500.0,0.00010243,2]
[348632588,1736691049400,-905.76,0.00010243,2]
[348632589,1736691049409,-717.57,0.00010243,2]
[348632590,1736691049418,-500.0,0.00010243,2]
[348632591,1736691049427,-500.0,0.00010243,2]
[348632592,1736691049437,-949.36,0.00010243,2]
[348632593,1736691049446,-500.0,0.00010243,2]
[348632594,1736691049455,-893.69,0.00010243,2]
[348632595,1736691049464,-500.0,0.00010243,2]
[348632596,1736691049474,-507.18025732,0.00010243,2]
[348632597,1736691049484,-500.0,0.00010243,2]
[348632598,1736691049494,-185.14,0.00010243,2]
[348632599,1736691049503,-676.39,0.00010244,2]
[348632600,1736691049513,-500.0,0.00010244,2]
[348632601,1736691049524,-500.0,0.00010244,2]
[348632602,1736691049533,-500.0,0.00010244,2]
[348632603,1736691049544,-259.32746861,0.00010244,2]
[348632604,1736691049555,-220.72684709,0.00010244,2]
[348632605,1736691049569,-500.0,0.00010244,2]
[348632606,1736691049578,-500.0,0.00010244,2]
[348632607,1736691049588,-302.14887364,0.00010244,2]
[348632608,1736691049599,-500.0,0.00010244,2]
[348632609,1736691049609,-500.0,0.00010244,2]
[348632610,1736691049619,-500.0,0.00010244,2]
[348632611,1736691049629,-641.01,0.00010244,2]
[348632612,1736691049641,-505.08595308,0.00010244,2]
[348632613,1736691049651,-500.0,0.00010244,2]
[348632614,1736691049660,-500.0,0.00010244,2]
[348632615,1736691049670,-603.58,0.00010244,2]
[348632616,1736691049679,-500.0,0.00010244,2]
[348632617,1736691049689,-695.45,0.00010244,2]
[348632618,1736691049698,-500.0,0.00010244,2]
[348632619,1736691049708,-500.0,0.00010244,2]
[348632620,1736691049718,-500.0,0.00010244,2]
[348632621,1736691049727,-500.0,0.00010244,2]
[348632622,1736691049737,-500.0,0.00010244,2]
[348632623,1736691049747,-500.0,0.00010244,2]
[348632624,1736691049757,-500.0,0.00010244,2]
[348632625,1736691049767,-500.0,0.00010244,2]
[348632626,1736691049776,-500.0,0.00010244,2]
[348632627,1736691049786,-500.0,0.00010244,2]
[348632628,1736691049796,-500.0,0.00010244,2]
[348632629,1736691049806,-500.0,0.00010244,2]
[348632630,1736691049816,-500.0,0.00010244,2]
[348632631,1736691049826,-500.0,0.00010244,2]
[348632632,1736691049836,-675.02,0.00010244,2]
[348632633,1736691049845,-500.0,0.00010244,2]
[348632634,1736691049855,-548.31482211,0.00010244,2]
[348632635,1736691049864,-500.0,0.00010244,2]
[348632636,1736691049873,-500.0,0.00010244,2]
[348632637,1736691049882,-564.97,0.00010244,2]
[348632638,1736691049892,-627.98,0.00010244,2]
[348632639,1736691049903,-500.0,0.00010244,2]
[348632640,1736691049913,-500.0,0.00010244,2]
[348632641,1736691049923,-511.85,0.00010244,2]
[348632642,1736691049933,-500.0,0.00010244,2]
[348632643,1736691049942,-500.0,0.00010244,2]
[348632644,1736691049952,-500.0,0.00010244,2]
[348632645,1736691049963,-740.19,0.00010244,2]
[348632646,1736691049973,-557.87,0.00010244,2]
[348632647,1736691049982,-500.0,0.00010244,2]
[348632648,1736691049992,-500.0,0.00010244,2]
[348632649,1736691050001,-504.3945345,0.00010244,2]
[348632650,1736691050013,-535.33894004,0.00010244,2]
[348632651,1736691050022,-500.0,0.00010244,2]
[348632652,1736691050031,-631.41,0.00010244,2]
[348632653,1736691050041,-500.0,0.00010244,2]
[348632654,1736691050050,-500.0,0.00010244,2]
[348632655,1736691050200,-800.91,0.00010244,2]
[348632656,1736691050210,-500.0,0.00010244,2]
[348632657,1736691050219,-600.8,0.00010244,2]
[348632658,1736691050228,-567.6,0.00010244,2]
[348632659,1736691050237,-823.24,0.00010244,2]
[348632660,1736691050247,-500.0,0.00010244,2]
[348632661,1736691050256,-500.0,0.00010244,2]
[348632662,1736691050265,-500.0,0.00010244,2]
[348632663,1736691050275,-500.0,0.00010244,2]
[348632664,1736691050285,-500.0,0.00010244,2]
[348632665,1736691050296,-500.0,0.00010244,2]
[348632666,1736691050306,-550.02,0.00010244,2]
[348632667,1736691050316,-500.0,0.00010244,2]
[348632668,1736691050326,-507.88077786,0.00010244,2]
[348632669,1736691050336,-500.0,0.00010244,2]
[348632670,1736691050346,-500.0,0.00010244,2]
[348632671,1736691050356,-1049.98,0.00010244,2]
[348632672,1736691050366,-1472.39,0.00010244,2]
[348632673,1736691050376,-1472.39,0.00010244,2]
[348632674,1736691050385,-500.0,0.00010244,2]
[348632675,1736691050395,-625.07,0.00010244,2]
[348632676,1736691050404,-952.29,0.00010244,2]
[348632677,1736691050414,-500.0,0.00010244,2]
[348632678,1736691050423,-500.0,0.00010244,2]
[348632679,1736691050432,-3003.03,0.00010244,2]
[348632680,1736691050442,-500.0,0.00010244,2]
[348632681,1736691050451,-1007.73,0.00010244,2]
[348632682,1736691050460,-500.0,0.00010244,2]
[348632683,1736691050469,-500.0,0.00010244,2]
[348632684,1736691050478,-500.0,0.00010244,2]
[348632685,1736691050487,-500.0,0.00010244,2]
[348632686,1736691050496,-500.0,0.00010244,2]
[348632687,1736691050505,-765.53,0.00010244,2]
[348632688,1736691050514,-500.0,0.00010244,2]
[348632689,1736691050523,-1379.73,0.00010244,2]
[348632690,1736691050532,-500.0,0.00010244,2]
[348632691,1736691050541,-500.0,0.00010244,2]
[348632692,1736691050551,-3500.11,0.00010244,2]
[348632693,1736691050563,-500.17692591,0.00010244,2]
[348632694,1736691050572,-500.0,0.00010244,2]
[348632695,1736691050581,-500.0,0.00010244,2]
[348632696,1736691050590,-500.0,0.00010244,2]
[348632697,1736691050599,-503.64783174,0.00010244,2]
[348632698,1736691050609,-500.0,0.00010244,2]
[348632699,1736691050618,-545.23,0.00010244,2]
[348632700,1736691050627,-1386.0,0.00010244,2]
[348632701,1736691050636,-1100.68,0.00010244,2]
[348632702,1736691050646,-3612.69,0.00010244,2]
[348632703,1736691050655,-953.71,0.00010244,2]
[348632704,1736691050664,-1752.99,0.00010244,2]
[348632705,1736691050673,-2546.32,0.00010244,2]
[348632706,1736691050681,-1391.19,0.00010244,2]
[348632707,1736691050690,-1480.46,0.00010244,2]
[348632708,1736691050699,-1939.35,0.00010244,2]
[348632709,1736691050708,-1410.54,0.00010244,2]
[348632710,1736691050718,-500.0,0.00010244,2]
[348632711,1736691050727,-500.0,0.00010247,2]
[348632712,1736691050736,-500.0,0.00010248,2]
[348632713,1736691050745,-2017.62,0.00010248,2]
[348632714,1736691050754,-1544.08,0.00010248,2]
[348632715,1736691050763,-654.764347,0.00010248,2]
[348632716,1736691050772,-747.840652,0.00010248,2]
[348632717,1736691050781,-3750.08,0.00010248,2]
[348632718,1736691050790,-1159.16,0.00010248,2]
[348632719,1736691050799,-717.74,0.00010248,2]
[348632720,1736691050808,-648.2,0.00010248,2]
[348632721,1736691050817,-500.0,0.00010248,2]
[348632722,1736691050827,-3187.32,0.00010248,2]
[348632723,1736691050835,-500.0,0.00010248,2]
[348632724,1736691050844,-1007.96,0.00010248,2]
[348632725,1736691050853,-2450.04,0.00010248,2]
[348632726,1736691050863,-1266.08,0.00010248,2]
[348632727,1736691050872,-647.5,0.00010248,2]
[348632728,1736691050882,-1059.63,0.00010248,2]
[348632729,1736691050892,-919.57,0.00010248,2]
[348632730,1736691050902,-1231.32,0.00010248,2]
[348632731,1736691050911,-875.01,0.00010248,2]
[348632732,1736691050920,-1382.6,0.00010248,2]
[348632733,1736691050930,-1644.57,0.00010248,2]
[348632734,1736691050939,-500.0,0.00010248,2]
[348632735,1736691050948,-597.27,0.00010248,2]
[348632736,1736691050957,-500.0,0.00010248,2]
[348632737,1736691050966,-1143.35,0.00010248,2]
[348632738,1736691050976,-1153.86,0.00010248,2]
[348632739,1736691050985,-791.83,0.00010249,2]
[348632740,1736691050995,-818.19,0.00010249,2]
[348632741,1736691051003,-1218.42,0.00010249,2]
[348632742,1736691051013,-2421.42,0.00010249,2]
[348632743,1736691051023,-1459.72,0.00010249,2]
[348632744,1736691051032,-1611.75,0.00010249,2]
[348632745,1736691051041,-500.0,0.00010249,2]
[348632746,1736691051050,-1012.53,0.00010249,2]
[348632747,1736691051059,-2492.77,0.00010249,2]
[348632748,1736691051068,-6816.53,0.00010249,2]
[348632749,1736691051077,-1300.44,0.00010249,2]
[348632750,1736691051086,-1800.8,0.00010249,2]
[348632751,1736691051095,-1136.46,0.00010249,2]
[348632752,1736691051105,-500.0,0.00010249,2]
[348632753,1736691051114,-500.0,0.0001027,2]
[348632754,1736691051124,-1000.0,0.00010273,2]
[348632755,1736691051134,-1085.74,0.00010273,2]
[348632756,1736691051143,-500.0,0.00010273,2]
[348632757,1736691051152,-2525.27,0.00010273,2]
[348632758,1736691051162,-2170.44,0.00010273,2]
[348632759,1736691051171,-500.0,0.00010274,2]
[348632760,1736691051180,-500.0,0.00010301,2]
[348632761,1736691051189,-500.0,0.00010329,2]
[348632762,1736691051198,-500.0,0.00010356,2]
[348632763,1736691051207,-500.0,0.00010384,2]
[348632764,1736691051217,-500.0,0.00010407,2]
[348632765,1736691051226,-500.0,0.00010411,2]
[348632766,1736691051235,-1004.89,0.00010416,2]
[348632767,1736691051245,-501.04767334,0.00010422,2]
[348632768,1736691051255,-965.34148818,0.00010438,2]
[348632769,1736691051265,-4233.96852,0.00010455,2]
[348632770,1736691051274,-26918.97507372,0.000105,2]
[348632771,1736691051284,-1381.66,0.00010516,2]
[348632772,1736691051293,-1042.82,0.00010516,2]
[348632773,1736691051303,-985.26,0.00010516,2]
[348632774,1736691051313,-500.0,0.00010516,2]
[348632775,1736691051323,-2494.0,0.00010516,2]
[348632776,1736691051332,-1834.07,0.00010516,2]
[348632777,1736691051342,-3548.52,0.00010516,2]
[348632778,1736691051352,-1415.15,0.00010516,2]
[348632779,1736691051365,-500.0,0.00010516,2]
[348632780,1736691051383,-1392.02,0.00010516,2]
[348632781,1736691051397,-3305.98,0.00010516,2]
[348632782,1736691051412,-1121.39,0.00010516,2]
[348632783,1736691051427,-514.02,0.00010516,2]
[348632784,1736691051443,-1881.48,0.00010516,2]
[348632785,1736691051458,-674.67,0.00010516,2]
[348632786,1736691051471,-941.22,0.00010516,2]
[348632787,1736691051487,-2007.55,0.00010516,2]
[348632788,1736691051500,-613.14,0.00010516,2]
[348632789,1736691051517,-2654.11,0.00010516,2]
[348632790,1736691051533,-762.21,0.00010517,2]
[348632791,1736691051548,-500.0,0.00010517,2]
[348632792,1736691051567,-500.0,0.00010517,2]
[348632793,1736691051581,-789.76,0.00010517,2]
[348632794,1736691051598,-500.0,0.00010517,2]
[348632795,1736691051613,-500.0,0.00010517,2]
[348632796,1736691051627,-500.0,0.00010517,2]
[348632797,1736691051640,-500.0,0.00010517,2]
[348632798,1736691051653,-500.0,0.00010517,2]
[348632799,1736691051668,-500.0,0.00010517,2]
[348632800,1736691051679,-500.0,0.00010517,2]
[348632801,1736691051692,-500.0,0.00010517,2]
[348632802,1736691051706,-524.46,0.00010517,2]
[348632803,1736691051717,-707.37,0.00010517,2]
[348632804,1736691051729,-538.31,0.00010517,2]
[348632805,1736691051742,-500.0,0.00010517,2]
[348632806,1736691051755,-500.0,0.00010517,2]
[348632807,1736691051767,-500.0,0.00010517,2]
[348632808,1736691051780,-500.0,0.00010517,2]
[348632809,1736691051794,-500.0,0.00010517,2]
[348632810,1736691051808,-1060.81,0.00010517,2]
[348632811,1736691051822,-500.0,0.00010517,2]
[348632812,1736691051835,-382.570605,0.00010517,2]
[348632813,1736691051847,-500.0,0.00010517,2]
[348632814,1736691051861,-532.11,0.00010517,2]
[348632815,1736691051874,-661.47,0.00010517,2]
[348632816,1736691051887,-874.47,0.00010517,2]
[348632817,1736691051900,-500.0,0.00010517,2]
[348632818,1736691051913,-767.72,0.00010517,2]
[348632819,1736691051927,-918.8,0.00010517,2]
[348632820,1736691051939,-507.65,0.00010517,2]
[348632821,1736691051952,-662.08,0.00010517,2]
[348632822,1736691051965,-539.47,0.00010517,2]
[348632823,1736691051978,-500.0,0.00010517,2]
[348632824,1736691051995,-500.0,0.00010517,2]
[348632825,1736691052008,-500.0,0.00010517,2]
[348632826,1736691052020,-500.0,0.00010517,2]
[348632827,1736691052033,-399.67176676,0.00010517,2]
[348632828,1736691052046,-500.0,0.00010517,2]
[348632829,1736691052059,-500.0,0.00010517,2]
[348632830,1736691052071,-512.67,0.00010517,2]
[348632831,1736691052085,-500.0,0.00010517,2]
[348632832,1736691052097,-500.0,0.00010517,2]
[348632833,1736691052110,-500.0,0.00010517,2]
[348632834,1736691052123,-500.0,0.00010517,2]
[348632835,1736691052136,-500.0,0.00010517,2]
[348632836,1736691052149,-505.75,0.00010517,2]
[348632837,1736691052162,-500.0,0.00010517,2]
[348632838,1736691052175,-730.91,0.00010517,2]
[348632839,1736691052188,-500.0,0.00010517,2]
[348632840,1736691052201,-824.05,0.00010517,2]
[348632841,1736691052213,-637.8,0.00010517,2]
[348632842,1736691052227,-334.12109393,0.00010517,2]
[348632843,1736691052240,-534.77,0.00010517,2]
[348632844,1736691052252,-901.85,0.00010517,2]
[348632845,1736691052266,-500.0,0.00010517,2]
[348632846,1736691052278,-886.0,0.00010517,2]
[348632847,1736691052291,-500.0,0.00010517,2]
[348632848,1736691052303,-782.7,0.00010517,2]
[348632849,1736691052316,-855.94,0.00010517,2]
[348632850,1736691052328,-500.0,0.00010517,2]
[348632851,1736691052341,-500.0,0.00010517,2]
[348632852,1736691052353,-500.0,0.00010517,2]
[348632853,1736691052366,-582.16,0.00010517,2]
[348632854,1736691052379,-500.0,0.00010517,2]
[348632855,1736691052391,-537.72,0.00010517,2]
[348632856,1736691052403,-500.0,0.00010517,2]
[348632857,1736691052416,-500.0,0.00010517,2]
[348632858,1736691052428,-643.78,0.00010517,2]
[348632859,1736691052440,-500.0,0.00010517,2]
[348632860,1736691052452,-500.0,0.00010517,2]
[348632861,1736691052464,-500.0,0.00010517,2]
[348632862,1736691052477,-1690.54,0.00010517,2]
[348632863,1736691052490,-661.23,0.00010517,2]
[348632864,1736691052503,-556.62,0.00010517,2]
[348632865,1736691052516,-693.77,0.00010517,2]
[348632866,1736691052529,-571.02,0.00010517,2]
[348632867,1736691052542,-500.0,0.00010517,2]
[348632868,1736691052558,-521.84,0.00010517,2]
[348632869,1736691052572,-974.54,0.00010517,2]
[348632870,1736691052585,-500.0,0.00010517,2]
[348632871,1736691052598,-500.0,0.00010517,2]
[348632872,1736691052611,-521.0,0.00010517,2]
[348632873,1736691052624,-500.0,0.00010517,2]
[348632874,1736691052637,-661.73,0.00010517,2]
[348632875,1736691052650,-502.98,0.00010517,2]
[348632876,1736691052662,-688.18,0.00010517,2]
[348632877,1736691052675,-500.0,0.00010517,2]
[348632878,1736691052687,-654.36,0.00010517,2]
[348632879,1736691052700,-500.0,0.00010517,2]
[348632880,1736691052713,-508.24831464,0.00010517,2]
[348632881,1736691052725,-581.15,0.00010517,2]
[348632882,1736691052738,-826.87,0.00010517,2]
[348632883,1736691052750,-193.26425948,0.00010517,2]
[348632884,1736691052762,-651.22,0.00010517,2]
[348632885,1736691052775,-500.0,0.00010517,2]
[348632886,1736691052788,-500.0,0.00010517,2]
[348632887,1736691052800,-889.86,0.00010517,2]
[348632888,1736691052813,-570.46,0.00010517,2]
[348632889,1736691052826,-500.0,0.00010517,2]
[348632890,1736691052840,-500.0,0.00010517,2]
[348632891,1736691052851,-543.54,0.00010517,2]
[348632892,1736691052860,-500.0,0.00010517,2]
[348632893,1736691052869,-500.0,0.00010517,2]
[348632894,1736691052878,-889.96,0.00010517,2]
[348632895,1736691052888,-500.0,0.00010517,2]
[348632896,1736691052898,-500.0,0.00010517,2]
[348632897,1736691052908,-509.16,0.00010517,2]
[348632898,1736691052917,-500.0,0.00010517,2]
[348632899,1736691052927,-501.32968642,0.00010517,2]
[348632900,1736691052936,-513.65,0.00010517,2]
[348632901,1736691053202,-500.0,0.00010517,2]
[348632902,1736691053223,-666.16,0.00010517,2]
[348632903,1736691053233,-500.0,0.00010517,2]
[348632904,1736691053242,-500.0,0.00010517,2]
[348632905,1736691053251,-500.0,0.00010517,2]
[348632906,1736691053260,-500.0,0.00010517,2]
[348632907,1736691053270,-500.0,0.00010517,2]
[348632908,1736691053279,-931.13,0.00010517,2]
[348632909,1736691053288,-583.59427689,0.00010517,2]
[348632910,1736691053297,-500.0,0.00010517,2]
[348632911,1736691053307,-500.0,0.00010517,2]
[348632912,1736691053317,-500.0,0.00010517,2]
[348632913,1736691053326,-500.0,0.00010517,2]
[348632914,1736691053335,-500.0,0.00010517,2]